Cogmind - Beta 15 @@@ ROGUE MODE // 2025.06.26 @ 11:02:10 Player: Annull999 Result: Destroyed by L-31 Rogue with Katana Performance ------------- Evolutions (1) 500 Regions Visited (4) 800 Robots Destroyed (10) 50 Value Destroyed (95) 95 Prototype IDs (0) 0 Alien Tech Used (0) 0 Bonus (700) 700 TOTAL SCORE: 2145 Bonus ------- Entered Garrisons 200 Used RIF Installer 500 Cogmind --------- Core Integrity 0/400 Matter 245/300 Energy 99/100 System Corruption 0% Temperature Cool (12) Movement Core (50) Location -9/Garrison Parts ------- > --- POWER (1) -------- (None) > --- PROPULSION (4) --- (None) > --- UTILITY (2) ------ Power Shielding > --- WEAPON (2) ------- (None) > --- INVENTORY (5) ---- Ion Engine Sensor Array Medium Laser Datajack Peak State ------------ > --- POWER ------------ Ion Engine > --- PROPULSION ------- Flight Unit Flight Unit Flight Unit Flight Unit > --- UTILITY ---------- Power Shielding > --- WEAPON ----------- Medium Laser Datajack > --- INVENTORY -------- Ion Engine Light Ion Engine [Rating: 8] Favorites ----------- Power Ion Engine Engine Ion Engine Propulsion Aluminum Leg Leg Aluminum Leg Flight Unit Flight Unit Utility Power Shielding Storage Small Storage Unit Protection Power Shielding Weapon Assault Rifle Energy Gun EM Pulse Gun Ballistic Gun Assault Rifle Special Melee Weapon Datajack Build | -11 -10 -9 -9 -9 ------- Run | Yrd Mat Mat Sto Gar Slots Evolved 2 | . . 2 . . Power . | . . . . . Propulsion 2 | . . 2 . . Utility . | . . . . . Weapon . | . . . . . Parts Attached 10 | . 5 4 1 . Power 2 | . 1 1 . . Engine 2 | . 1 1 . . Core . | . . . . . Reactor . | . . . . . Propulsion 5 | . 2 2 1 . Treads . | . . . . . Leg . | . . . . . Wheel . | . . . . . Hover . | . . . . . Flight 5 | . 2 2 1 . Utility 1 | . 1 . . . Device . | . . . . . Storage . | . . . . . Processor . | . . . . . Hackware . | . . . . . Protection 1 | . 1 . . . Artifact . | . . . . . Weapon 2 | . 1 1 . . Energy Gun 1 | . 1 . . . Energy Cannon . | . . . . . Ballistic Gun . | . . . . . Ballistic Cannon . | . . . . . Launcher . | . . . . . Special Weapon . | . . . . . Impact Weapon . | . . . . . Slashing Weapon . | . . . . . Piercing Weapon . | . . . . . Special Melee Weapon 1 | . . 1 . . Unidentified Prototypes . | . . . . . Parts Lost 7 | . 1 3 2 1 Power 1 | . . . 1 . Propulsion 5 | . . 3 1 1 Utility . | . . . . . Weapon 1 | . 1 . . . Highest Loss Streak 3 | . 1 3 2 1 To Critical Strikes . | . . . . . Average Backups 3 | 2 4 2 4 4 Power 1 | 1 1 2 1 1 Propulsion . | . 1 . . . Utility . | . . . . 1 Weapon . | 1 . . 1 1 Tool/Special . | . . . . . Unused Backups 7 | . 5 . . 2 Power 1 | . . . . 1 Propulsion 2 | . 2 . . . Utility 2 | . 1 . . 1 Weapon 2 | . 2 . . . Tool/Special . | . . . . . Average Slot Usage (%) 67 | . 95 72 24 14 Engine 9 | . 14 11 4 . Leg 12 | . 24 . . . Flight 9 | . 3 31 9 3 Storage 6 | . 12 . . . Protection 12 | . 13 11 11 11 Energy Gun 8 | . 14 9 . . Ballistic Gun 6 | . 12 . . . Special Melee Weapon 1 | . . 8 . . Peak Build Rating 8 | 6 7 8 3 3 Average Rating 5 | 6 6 6 2 1 On Entrance 4 | 6 6 5 3 3 Naked Turns . | . . . . . Heaviest Build 15 | 14 15 9 4 1 Greatest Support 20 | 20 20 16 4 4 Greatest Overweight (x) 1 | . . 1 . . Average Overweight (x) . | . . . . . Largest Inventory Capacity 8 | 8 8 5 5 5 Average Capacity 6 | 8 7 5 5 5 Most Carried 8 | 5 8 4 5 4 Average Carried 3 | 2 4 2 4 4 Final Capacity 8 | 8 5 5 5 5 Final Carried 5 | 2 5 4 4 4 Class Distribution -------------------- 90% | Mutant 9% | Scavenger-Sprinter Dominant Class ---------------- Mutant | -10/Materials Scavenger-Sprinter | -9/Materials Mutant | -9/Storage Mutant | -9/Garrison Resources | -11 -10 -9 -9 -9 ----------- Run | Yrd Mat Mat Sto Gar Matter Collected 263 | 200 19 44 . . Remotely . | . . . . . Salvage Created 169 | . 125 44 . . Parts 16 | . 13 3 . . Haulers Intercepted . | . . . . . Recyclers Shooed . | . . . . . Parts Field Recycled . | . . . . . Retrieved Matter . | . . . . . Parts Self-Destructed . | . . . . . Prevented . | . . . . . Kills | -11 -10 -9 -9 -9 ------- Run | Yrd Mat Mat Sto Gar Combat Hostiles Destroyed 9 | . 6 3 . . Guns 9 | . 6 3 . . Classes Destroyed 2 | . 2 . . . Builder 1 | . 1 . . . Swarmer 9 | . 6 3 . . Best Kill Streak 4 | . 4 3 . . Combat Bots Only 3 | . 3 3 . . Max Kills in Single Turn 2 | . 2 1 . . Gunslinging 1 | . 1 . . . Exploded . | . . . . . Melee . | . . . . . Uniques/NPCs Destroyed . | . . . . . Combat | -11 -10 -9 -9 -9 -------- Run | Yrd Mat Mat Sto Gar Hostile Shots Fired 148 | . 45 24 42 37 Missed 67 | . 18 12 25 12 Hits 81 | . 27 12 17 25 Melee 1 | . . . . 1 Projectile 80 | . 27 12 17 24 Critical Strikes 3 | . 1 . 1 1 Damage Taken 869 | . 253 135 123 358 Core 513 | . 86 14 69 344 Absorbed by Shields . | . . . . . Redirected to Shielding 14 | . . 8 6 . Core Remaining (%) 82 | 100 65 . . . Volleys Fired 22 | . 12 10 . . Largest 2 | . 2 1 . . Hottest 60 | . 60 50 . . Shots Fired 33 | . 23 10 . . Gun 33 | . 23 10 . . Cannon . | . . . . . Launcher . | . . . . . Special . | . . . . . Kinetic 11 | . 11 . . . Thermal 11 | . 1 10 . . Explosive . | . . . . . Electromagnetic 11 | . 11 . . . Robot Hit Streak 3 | . 3 3 . . Robot Miss Streak 6 | . 6 4 . . Penetration Max . | . . . . . Secondary Targets 1 | . 1 . . . Max Gunslinging Chain 1 | . 1 . . . Shots Hit Robots 13 | . 8 5 . . Core Hits 10 | . 7 3 . . Critical Kills . | . . . . . Critical Parts Destroyed . | . . . . . Critical Strikes . | . . . . . Melee Attacks . | . . . . . Impact . | . . . . . Slashing . | . . . . . Piercing . | . . . . . Sneak Attacks . | . . . . . Combat Hostiles . | . . . . . Follow-up Attacks . | . . . . . Damage Inflicted 201 | . 127 74 . . Guns 201 | . 127 74 . . Cannons . | . . . . . Explosions . | . . . . . Melee . | . . . . . Ramming . | . . . . . Kinetic 79 | . 79 . . . Thermal 74 | . . 74 . . Explosive . | . . . . . Electromagnetic 48 | . 48 . . . Impact . | . . . . . Slashing . | . . . . . Piercing . | . . . . . Highest Corruption . | . . . . . Average Corruption . | . . . . . Corruption Purged . | . . . . . Corruption Blocked . | . . . . . Overload Shots . | . . . . . Overflow Damage . | . . . . . Projectiles . | . . . . . Explosions . | . . . . . Melee . | . . . . . Knockbacks . | . . . . . Impact . | . . . . . Kinetic . | . . . . . Secondary . | . . . . . Self-Inflicted Damage . | . . . . . Shots . | . . . . . Rammed . | . . . . . Targets Rammed . | . . . . . Kicked . | . . . . . Crushed . | . . . . . Highest Temperature 98 | . 38 98 . . Average Temperature 41 | . 19 46 . . Received Heat Transfer 225 | . 63 27 . 135 Siege Activations . | . . . . . Martial Activations . | . . . . . Shielding Activations . | . . . . . Robots Disrupted . | . . . . . Combat Hostiles . | . . . . . Robots Corrupted . | . . . . . Combat Hostiles . | . . . . . Parts Fried . | . . . . . Impact Corruptions . | . . . . . Robots Melted . | . . . . . Combat Hostiles . | . . . . . Parts Melted 2 | . . 2 . . Heat Transferred 222 | . . 222 . . Parts Sabotaged . | . . . . . Parts Stolen . | . . . . . Parts Stripped . | . . . . . Power Chain Reactions . | . . . . . Alert | -11 -10 -9 -9 -9 ------- Run | Yrd Mat Mat Sto Gar Maximum Alert Level . | . . . . . Low Security (%) 100 | 100 100 100 100 100 Level 1 . | . . . . . Level 2 . | . . . . . Level 3 . | . . . . . Level 4 . | . . . . . Level 5 . | . . . . . High Security . | . . . . . Max Security . | . . . . . Peak Influence 104 | . 95 78 104 102 Initial 53 | . . 27 24 53 Average 39 | . 26 39 73 70 Influence Increases 403 | . 145 91 108 59 Destroy 0b10 Robot/C 180 | . 120 60 . . Destroy 0b10 Robot/NC 5 | . 5 . . . Destroy Leader 30 | . 20 10 . . Successful Hack 23 | . . 6 3 14 Partial Spotted 60 | . . . 45 15 Lose Combat Pursuer 105 | . . 15 60 30 Influence Decreases 301 | . 80 98 84 39 Entered New Map 101 | . . 38 34 29 Time Decay 130 | . 70 30 30 . Lost Part 70 | . 10 30 20 10 Squads Dispatched 3 | . 2 1 . . Investigation 1 | . . 1 . . Extermination . | . . . . . Reinforcement 2 | . 2 . . . Assault . | . . . . . Garrison . | . . . . . Intercept . | . . . . . Searches Triggered . | . . . . . Construction Impeded . | . . . . . Haulers Reinforced . | . . . . . Active Scanning Responses . | . . . . . Cargo Convoy Interrupts . | . . . . . Stealth | -11 -10 -9 -9 -9 --------- Run | Yrd Mat Mat Sto Gar Distress Signals 2 | . 2 . . . Communications Jammed . | . . . . . Distress Signals . | . . . . . Times Spotted 41 | . 10 11 10 10 Peak Tracking Total 10 | . 6 8 6 10 Tactical Retreats 3 | . . 1 1 1 Traps | -11 -10 -9 -9 -9 ------- Run | Yrd Mat Mat Sto Gar Traps Triggered . | . . . . . Indirectly . | . . . . . Trap Hack Attempts . | . . . . . Triggered . | . . . . . Disarmed . | . . . . . Reprogrammed . | . . . . . Reused . | . . . . . Traps Extracted . | . . . . . Installed . | . . . . . Triggered . | . . . . . Machines | -11 -10 -9 -9 -9 ---------- Run | Yrd Mat Mat Sto Gar Machines Disabled . | . . . . . Max in Single Turn . | . . . . . Machines Repaired . | . . . . . Machines Dismantled . | . . . . . Machines Sabotaged . | . . . . . Overloaded Fab Kills . | . . . . . Hacking | -11 -10 -9 -9 -9 --------- Run | Yrd Mat Mat Sto Gar Machines Accessed 7 | . 1 3 2 1 Terminals 5 | . 1 2 1 1 Fabricators . | . . . . . Repair Stations . | . . . . . Recycling Units . | . . . . . Scanalyzers 1 | . . 1 . . Garrison Access 1 | . . . 1 . Total Hacks 22 | . 4 11 4 3 Successful 9 | . 1 5 2 1 Failed 13 | . 3 6 2 2 Catastrophic 2 | . . 1 1 . Database Lockouts . | . . . . . Manual 19 | . 4 9 3 3 Terminals 19 | . 4 9 3 3 Fabricators . | . . . . . Repair Stations . | . . . . . Recycling Units . | . . . . . Scanalyzers 2 | . . 2 . . Garrison Access 1 | . . . 1 . Terminal Hacks 1 | . . 1 . . Terminal Index 1 | . . 1 . . Fabricator Hacks . | . . . . . Repair Station Hacks . | . . . . . Recycling Unit Hacks . | . . . . . Scanalyzer 2 | . . 2 . . Insert Component 1 | . . 1 . . Analyze 1 | . . 1 . . Garrison Access Hacks 1 | . . . 1 . Unlock Access 1 | . . . 1 . Unauthorized Hacks 5 | . 1 2 1 1 Terminals 5 | . 1 2 1 1 Botnet 5 | . 1 2 1 1 Fabricators . | . . . . . Repair Stations . | . . . . . Recycling Units . | . . . . . Scanalyzers . | . . . . . Garrison Access . | . . . . . Data Cores Recovered . | . . . . . Used . | . . . . . Hacking Detections 6 | . 1 3 1 1 Full Trace Events 3 | . 1 1 1 . Feedback Events . | . . . . . Feedback Blocked . | . . . . . Robot Schematics Acquired . | . . . . . Robots Built . | . . . . . Authchips . | . . . . . Time . | . . . . . Total Robot Build Rating . | . . . . . Part Schematics Acquired 1 | . . 1 . . Parts Built . | . . . . . Authchips . | . . . . . Time . | . . . . . Total Part Build Rating . | . . . . . Parts Repaired . | . . . . . Time . | . . . . . Parts Recycled . | . . . . . Recycled Matter . | . . . . . Retrieved Matter . | . . . . . Retrieved Components . | . . . . . Parts Scanalyzed 1 | . . 1 . . Part Schematics Acquired 1 | . . 1 . . Parts Damaged . | . . . . . Bothacking | -11 -10 -9 -9 -9 ------------ Run | Yrd Mat Mat Sto Gar Used RIF Installer 1 | . . . . 1 Robots Hacked . | . . . . . Non-combat . | . . . . . Combat . | . . . . . Robot Hacks Applied . | . . . . . Relay Couplers Released . | . . . . . Fabnet Peak Effective % . | . . . . . Robots Rewired . | . . . . . Allies Hacked . | . . . . . Hacks Repelled . | . . . . . Allies | -11 -10 -9 -9 -9 -------- Run | Yrd Mat Mat Sto Gar Total Allies . | . . . . . Largest Group . | . . . . . Highest-Rated Group . | . . . . . Highest-Rated Ally . | . . . . . Total Orders . | . . . . . Ally Attacks . | . . . . . Total Damage . | . . . . . Kills . | . . . . . Allies Corrupted . | . . . . . Allies Melted . | . . . . . Intel | -11 -10 -9 -9 -9 ------- Run | Yrd Mat Mat Sto Gar Active Infowar (turns) . | . . . . . Robot Analysis Total . | . . . . . Derelict Logs Recovered . | . . . . . Drone Launches . | . . . . . Drone Recoveries . | . . . . . Exploration | -11 -10 -9 -9 -9 ------------- Run | Yrd Mat Mat Sto Gar Turns Passed 535 | 36 265 79 72 83 Spaces Moved 740 | 29 224 149 160 178 Core 123 | . . . 13 110 Treads . | . . . . . Legs 188 | 29 159 . . . Wheels . | . . . . . Hover . | . . . . . Flight 429 | . 65 149 147 68 Fastest Speed 31 | 120 37 31 35 35 Average Speed 59 | 120 95 33 39 44 Slowest Speed 120 | 120 120 120 50 50 Overloaded Moves . | . . . . . Propulsion Burnouts . | . . . . . Robots Hopped 13 | . 3 7 3 . Potential Cave-ins . | . . . . . Cave-ins Triggered . | . . . . . Exploration Rate (%) 22 | 3 45 18 28 19 Regions Visited 4 Branch Regions 1 Pre-discovered Areas 1 | . . . 1 . Known Exits Taken 1 | . . . 1 . Unknown Exits Taken 3 | 1 1 1 . . Scrap Searched . | . . . . . Spaces Dug . | . . . . . Terrain Destroyed . | . . . . . Melee . | . . . . . Projectile . | . . . . . AOE . | . . . . . Terrain Rammed . | . . . . . Walls Destroyed . | . . . . . Machines Disabled . | . . . . . Actions | -11 -10 -9 -9 -9 --------- Run | Yrd Mat Mat Sto Gar Total 788 | 32 248 160 166 182 Wait 10 | . . . 6 4 Move 711 | 28 217 135 153 178 Hop 12 | . 3 6 3 . Pick Up 9 | . 7 . 2 . Fast Attach . | . . . . . Attach 7 | . 2 4 1 . Detach 3 | . . 3 . . Swap 5 | . 3 2 . . Drop 9 | 4 4 . 1 . Fire 22 | . 12 10 . . Melee . | . . . . . Ram . | . . . . . Kick . | . . . . . Crush . | . . . . . Escape Stasis . | . . . . . Rewire . | . . . . . Trap . | . . . . . Miscellaneous . | . . . . . Route ------- -11/Scrapyard -10/Materials -9/Materials -9/Storage -9/Garrison History --------- Turn | Location | Event 4 | -11/Scrapyard | Discovered new exit (range 3) 37 | -11/Scrapyard | Entered Materials 295 | -10/Materials | Discovered new exit (range 10) 302 | -10/Materials | Entered another Materials area 302 | -9/Materials | Evolved 2 slots: Propulsion x2 332 | -9/Materials | Discovered new exit (range 6) 381 | -9/Materials | Entered Storage 400 | -9/Storage | Lost 3 parts (3n) 409 | -9/Storage | Learned location of Armory (-3) 451 | -9/Storage | Identified exit to Garrison 453 | -9/Storage | Entered Garrison 460 | -9/Garrison | Installed Relay Interface Framework 477 | -9/Garrison | Triggered checkpoint 517 | -9/Garrison | Triggered checkpoint 519 | -9/Garrison | Core integrity fell below 50% 536 | -9/Garrison | Core integrity fell below 20% 536 | -9/Garrison | Destroyed by L-31 Rogue with Katana Last Messages --------------- 00451_ Connecting with Garrison Access... >>Unlock Access door unlocked. 00451_ EXIT=UNLOCKED: GARRISON 00451_ Connecting with Garrison Access... LOCATION=GARRISON GOAL=ESCAPE Initiating installation procedure... 00460_ Relay Interface Framework installed. 00469_ Connecting with Garrison Terminal... >>Trojan(Botnet) Trojan loaded successfully. Testing... Terminal linked with 0 systems. Awaiting botnet instructions. 00477_ Beams of light sweep through the air. An alarm sounds. 00477_ VTOL Module destroyed. 00480_ Critical hit (Burn: +37). 00509_ ALERT: Dispatching investigation squad to Recycling. 00517_ Beams of light sweep through the air. An alarm sounds. Map ----- +----------------------------------------------------+ | ?????????????????????????????????????????????????? | | ?????????????????????????????????????????????????? | | ?????????????????????????????????????????????????? | | ?????????????????????????????????????????????????? | | ?????????????????????????????????????????????????? | | ?????????????????????????????????????????????????? | | ?????????????????????????????????????????????????? | | ?????????????????????????????????????????????????? | | ?????????????????????????????????????????????????? | | ?????????????????????????????????????????????????? | | ?????????????????????????????????????????????????? | | ?????????????????????????????????????????????????? | | ?????????????????????????????????????????????????? | | ?????????????????????????????????????????????????? | | ???????????????????????####????####??????????????? | | ???????????????????????# #????#[[#??????????????? | | ???????????????????????#++######[[#??????????????? | | ???????????????????????# Y #??????????????? | | ???????????????????????# g#+####!!#??????????????? | | ????????######?????????# # #??#!!#??????????????? | | ????????# #?????????# g# #??####??????????????? | | ????????# #?????????# # #????????????????????? | | ????????# ######????# #+#????????????????????? | | ????????### ##"""#????# Yg#????????????????????? | | ??????????# ##" "#????# lg #????????????????????? | | ??????????# ##" "#????# @ #????????????????????? | | ??????????# ##" "#????#Y ###????????????????????? | | ??????????# ## #????#Y #??????????????????????? | | ??????????# ### ####### ###########????????????? | | ??????????# #????????????? | | ??????????# #????????????? | | ??????????###### ####### ######## #????????????? | | ??????????????#! !#????# #??????# #????????????? | | ??????????????#! !#????# #??????# #????????????? | | ??????????????#! !#????# #??????# #????????????? | | ??????????????#####????# #??????# #????????????? | | ???????????????????????# +??????# #????????????? | | ??????????????????????## #??????# #???????? #?? | | ??????????????????????#T #?????## ##""""## #?? | | ??????????????????????## ####### #?? | | ???????????????????????# #?? | | ???????????????????????# #?? | | ???????????????????????########## ## ## #?? | | ??????????????????????????????### ## ## #?? | | ??????????????????????????????# "?? | | ??????????????????????????????# "?? | | ??????????????????????????????# "?? | | ??????????????????????????????# "?? | | ??????????????????????????????### ## ## #?? | | ????????????????????????????????# #? #??? #?? | +----------------------------------------------------+ Best States ------------- Heat Dissipation 28 Energy Generation 10 Energy Capacity 250 Matter Stores 300 Matter Capacity 300 Sight Range 16 Terrain Scan Density 10 Power Shielding 33 Evasion (%) 63 Item Schematics ----------------- Flight Unit | -9/Materials | Scanalyzed Robot Schematics ------------------ None Fabricated ------------ Nothing Repaired ---------- Nothing Alien Tech Used ----------------- None Achievements -------------- None Challenges ------------ None Game ------ Seed BlastThunderBank Manual? 0 Play Time 00:18:34 Cumulative 14.9 hours Start 2025.06.26 @ 10:45:06 End 2025.06.26 @ 11:02:10 Sessions 1 Manual Loads 0 Difficulty Rogue Special Mode None Game No. 27 Rogue 27 Adventurer 0 Explorer 0 Win Type - Total 0 Types 0/0/0/0/0/0/0/0/0/0 Lore% 5 Gallery% 14 Achievement% 17 Wizard Run 0 Options --------- Layout 0 ASCII 0 Keyboard 0 Movement Numpad Keybinds 0 Fullscreen 2 Font 24/Smallcaps Map View 76x50 Zoom Use 0% Tactical HUD 1 Map Filters NONE Filters NONE Steam 1 RUN: 54489a24-0ca5-4dc9-af3e-017b83924795